fUST/lending_fUST_20250223
["ID","MTS","AMOUNT","RATE_DAILY","PERIOD"]
[354128691,1740264647853,-12029.98,0.00015342,2]
[354128692,1740264647862,-1056.18,0.00015342,2]
[354128693,1740264647872,-3804.96,0.00015342,2]
[354128694,1740264647881,-610.09,0.00015342,2]
[354128695,1740264647891,-611.98,0.00015342,2]
[354128696,1740264647901,-500.0,0.00015342,2]
[354128697,1740264647910,-713.37,0.00015424,2]
[354128698,1740264647919,-978.73,0.00015424,2]
[354128699,1740264647928,-1945.46,0.00015424,2]
[354128700,1740264647937,-952.28,0.00015424,2]
[354128701,1740264647947,-530.0,0.00015424,2]
[354128702,1740264647956,-517.16,0.00015424,2]
[354128703,1740264647965,-979.81,0.00015424,2]
[354128704,1740264647975,-555.95,0.00015424,2]
[354128705,1740264647984,-4758.59,0.00015424,2]
[354128706,1740264647994,-500.0,0.00015424,2]
[354128707,1740264648004,-561.6,0.00015424,2]
[354128708,1740264648013,-1627.62,0.00015424,2]
[354128709,1740264648022,-1580.41,0.00015424,2]
[354128710,1740264648033,-12029.98,0.00015424,2]
[354128711,1740264648042,-1056.18,0.00015424,2]
[354128712,1740264648052,-3804.96,0.00015424,2]
[354128713,1740264648062,-610.09,0.00015424,2]
[354128714,1740264648072,-611.98,0.00015424,2]
[354128715,1740264648082,-500.0,0.00015424,2]
[354128716,1740264648092,-713.37,0.00015506,2]
[354128717,1740264648101,-978.73,0.00015506,2]
[354128718,1740264648110,-1945.46,0.00015506,2]
[354128719,1740264648120,-952.28,0.00015506,2]
[354128720,1740264648130,-530.0,0.00015506,2]
[354128721,1740264648139,-517.16,0.00015506,2]
[354128722,1740264648149,-979.81,0.00015506,2]
[354128723,1740264648159,-555.95,0.00015506,2]
[354128724,1740264648169,-4758.59,0.00015506,2]
[354128725,1740264648179,-500.0,0.00015506,2]
[354128726,1740264648189,-561.6,0.00015506,2]
[354128727,1740264648199,-1627.62,0.00015506,2]
[354128728,1740264648208,-1580.41,0.00015506,2]
[354128729,1740264648218,-151.0,0.00015506,2]
[354128730,1740264648228,-12029.98,0.00015506,2]
[354128731,1740264648238,-1056.18,0.00015506,2]
[354128732,1740264648247,-3804.96,0.00015506,2]
[354128733,1740264648259,-610.09,0.00015506,2]
[354128734,1740264648269,-611.98,0.00015506,2]
[354128735,1740264648280,-438.62,0.00015506,2]
[354128736,1740264648290,-713.51,0.00015589,2]
[354128737,1740264648299,-978.81,0.00015589,2]
[354128738,1740264648309,-1945.61,0.00015589,2]
[354128739,1740264648319,-952.44,0.00015589,2]
[354128740,1740264648329,-530.23,0.00015589,2]
[354128741,1740264648339,-517.22,0.00015589,2]
[354128742,1740264648348,-979.81,0.00015589,2]
[354128743,1740264648358,-556.08,0.00015589,2]
[354128744,1740264648368,-4758.72,0.00015589,2]
[354128745,1740264648378,-414.74,0.00015589,2]
[354128746,1740264648388,-561.79,0.00015589,2]
[354128747,1740264648398,-1627.75,0.00015589,2]
[354128748,1740264648408,-1580.5372369,0.00015589,2]
[354128749,1740264648419,-12030.05093878,0.00015589,2]
[354128750,1740264648429,-1056.19,0.00015589,2]
[354128751,1740264648439,-610.22,0.00015589,2]
[354128752,1740264648448,-3805.1194,0.00015589,2]
[354128753,1740264648458,-612.03484352,0.00015589,2]
[354128754,1740264648468,-151.0,0.000157,2]
[354128755,1740264648478,-262.55171,0.00015775,2]
[354128756,1740264648488,-900.0,0.00015808,2]
[354128757,1740264648499,-600.0,0.0001584,2]
[354128758,1740264648514,-151.0,0.000159,2]
[354128759,1740264648523,-168.26106218,0.00015918,2]
[354128760,1740264648534,-600.0,0.00016005,2]
[354128761,1740264648543,-185.0341079,0.00016163,2]
[354128762,1740264648553,-499.0,0.00016164,2]
[354128763,1740264648563,-155.256588,0.0001617,8]
[354128764,1740264648573,-600.0,0.0001617,2]
[354128765,1740264648583,-151.0,0.000162,2]
[354128766,1740264648594,-600.0,0.00016335,2]
[354128767,1740264648605,-12675.73538758,0.00016335,2]
[354128768,1740264648614,-3000.0,0.000164,2]
[354128769,1740264648624,-5846.67763461,0.000164,2]
[354128770,1740264648637,-195.78537257,0.000164,2]
[354128771,1740264648647,-195.78537257,0.000164,2]
[354128772,1740264648656,-195.78537257,0.000164,2]
[354128773,1740264648665,-195.78537257,0.000164,2]
[354128774,1740264648675,-195.78537257,0.000164,2]
[354128775,1740264648684,-195.78537257,0.000164,2]
[354128776,1740264648693,-195.78537257,0.000164,2]
[354128777,1740264648703,-195.78537257,0.000164,2]
[354128778,1740264648714,-195.78537257,0.000164,2]
[354128779,1740264648724,-195.78537257,0.000164,2]
[354128780,1740264648733,-195.78537257,0.000164,2]
[354128781,1740264648744,-195.78537257,0.000164,2]
[354128782,1740264648754,-195.78537257,0.000164,2]
[354128783,1740264648763,-195.78537257,0.000164,2]
[354128784,1740264648772,-195.78537257,0.000164,2]
[354128785,1740264648782,-195.78537257,0.000164,2]
[354128786,1740264648791,-195.78537257,0.000164,2]
[354128787,1740264648801,-195.78537257,0.000164,2]
[354128788,1740264648811,-195.78537257,0.000164,2]
[354128789,1740264648822,-195.78,0.000164,2]
[354128790,1740264648832,-150.0,0.00016431,2]
[354128791,1740264648842,-538.0,0.00016431,2]
[354128792,1740264648852,-1970.0,0.00016431,2]
[354128793,1740264648861,-2287.0,0.00016431,2]
[354128794,1740264648871,-396.0,0.00016431,2]
[354128795,1740264648880,-150.0,0.00016431,2]
[354128796,1740264648892,-150.0,0.00016431,2]
[354128797,1740264648902,-151.0,0.00016438,2]
[354128798,1740264648912,-236.85589448,0.00016473,2]
[354128799,1740264648921,-445.94572311,0.0001649,2]
[354128800,1740264648997,-14147.74624826,0.000165,5]
[354128801,1740264649008,-5085.7644202,0.000165,5]
[354128802,1740264649018,-508755.35752169,0.000165,8]
[354128803,1740264649032,-6542.56315385,0.000165,8]
[354128804,1740264649044,-162932.28672753,0.000165,8]
[354128805,1740264649091,-1126394.9692034,0.000165,8]
[354128806,1740264649103,-7923.04615557,0.000165,8]
[354128809,1740265392994,-150.0,9.041e-05,2]
[354128810,1740265397153,-116.54922,9.041e-05,2]
[354128851,1740265832719,-478.72469522,0.00013068,2]
[354128854,1740265832731,-421.27530478,0.00013068,2]
[354128856,1740265832740,-300.0,0.00013535,2]
[354128857,1740265832750,-1767.05886358,0.00013537,2]
[354128860,1740265832759,-1168.91917404,0.00013598,2]
[354128861,1740265832768,-501.99086354,0.00013673,2]
[354128864,1740265832778,-500.0,0.00013673,2]
[354128865,1740265832787,-638.32047813,0.00013673,2]
[354128867,1740265832796,-500.0,0.00013673,2]
[354128870,1740265832806,-500.23995093,0.00013673,2]
[354128871,1740265832815,-500.19730124,0.00013673,2]
[354128873,1740265832825,-500.0,0.00013673,2]
[354128875,1740265832835,-152.25880552,0.00013673,2]
[354128878,1740265832845,-500.0,0.00013673,2]
[354128880,1740265832855,-500.0,0.00013673,2]
[354128882,1740265832865,-151.0,0.0001369,2]
[354128884,1740265832874,-160.12928753,0.0001369,2]
[354128886,1740265832884,-587.44281682,0.00013697,2]
[354128888,1740265832894,-587.37192888,0.00013697,2]
[354128890,1740265832903,-500.0,0.00013698,2]
[354128892,1740265832920,-500.0,0.00013698,2]
[354128894,1740265832935,-500.0,0.00013698,2]
[354128896,1740265832944,-500.0,0.00013698,2]
[354128898,1740265832955,-500.0,0.00013698,2]
[354128900,1740265832964,-313.23897194,0.00013698,2]
[354128903,1740265832973,-500.0,0.00013698,2]
[354128905,1740265832983,-500.0,0.00013698,2]
[354128907,1740265832993,-500.0,0.00013698,2]
[354128909,1740265833003,-500.0,0.00013698,2]
[354128911,1740265833013,-500.0,0.00013698,2]
[354128913,1740265833022,-500.0,0.00013698,2]
[354128915,1740265833031,-500.0,0.00013698,2]
[354128917,1740265833041,-1000.0,0.00013698,2]
[354128919,1740265833051,-500.0,0.00013698,2]
[354128921,1740265833060,-500.0,0.00013698,2]
[354128923,1740265833070,-500.0,0.00013698,2]
[354128925,1740265833079,-500.0,0.00013698,2]
[354128927,1740265833089,-500.0,0.00013698,2]
[354128929,1740265833099,-605.72072481,0.00013698,2]
[354128931,1740265833108,-500.0,0.00013698,2]
[354128933,1740265833117,-500.0,0.00013698,2]
[354128935,1740265833127,-500.0,0.00013698,2]
[354128937,1740265833137,-453.27760459,0.00013698,2]
[354128939,1740265833146,-500.0,0.00013698,2]
[354128941,1740265833156,-513.97738082,0.00013698,2]
[354128943,1740265833166,-500.0,0.00013698,2]
[354128945,1740265833176,-500.0,0.00013698,2]
[354128947,1740265833186,-500.0,0.00013698,2]
[354128949,1740265833195,-500.0,0.00013698,2]
[354128951,1740265833204,-538.47790943,0.00013698,2]
[354128953,1740265833215,-639.26932728,0.00013698,2]
[354128955,1740265833224,-500.0,0.00013698,2]
[354128957,1740265833234,-500.0,0.00013698,2]
[354128959,1740265833243,-500.0,0.00013698,2]
[354128961,1740265833253,-500.0,0.00013698,2]
[354128963,1740265833262,-500.0,0.00013698,2]
[354128965,1740265833273,-500.0,0.00013698,2]
[354128967,1740265833283,-500.0,0.00013698,2]
[354128969,1740265833292,-500.0,0.00013698,2]
[354128971,1740265833302,-500.0,0.00013698,2]
[354128973,1740265833312,-615.44603222,0.00013698,2]
[354128975,1740265833321,-500.0,0.00013698,2]
[354128977,1740265833330,-500.0,0.00013698,2]
[354128979,1740265833339,-500.0,0.00013698,2]
[354128981,1740265833349,-500.0,0.00013698,2]
[354128983,1740265833358,-500.0,0.00013698,2]
[354128985,1740265833367,-501.13318078,0.00013698,2]
[354128987,1740265833376,-500.0,0.00013698,2]
[354128989,1740265833385,-500.0,0.00013698,2]
[354128991,1740265833395,-500.0,0.00013698,2]
[354128993,1740265833404,-500.0,0.00013698,2]
[354128995,1740265833414,-500.0,0.00013698,2]
[354128997,1740265833423,-400.2037739,0.00013698,2]
[354128999,1740265833433,-500.0,0.00013698,2]
[354129001,1740265833442,-500.0,0.00013698,2]
[354129003,1740265833451,-257.37554615,0.00013698,2]
[354129005,1740265833461,-500.0,0.00013698,2]
[354129007,1740265833471,-500.0,0.00013698,2]
[354129009,1740265833480,-500.0,0.00013698,2]
[354129011,1740265833489,-500.0,0.00013698,2]
[354129013,1740265833498,-500.0,0.00013698,2]
[354129015,1740265833507,-500.0,0.00013698,2]
[354129017,1740265833516,-505.591888,0.00013698,2]
[354129019,1740265833526,-500.0,0.00013698,2]
[354129021,1740265833535,-500.0,0.00013698,2]
[354129023,1740265833545,-500.0,0.00013698,2]
[354129025,1740265833554,-500.0,0.00013698,2]
[354129027,1740265833563,-500.0,0.00013698,2]
[354129029,1740265833573,-500.0,0.00013698,2]
[354129032,1740265833583,-500.0,0.00013698,2]
[354129034,1740265833593,-500.0,0.00013698,2]
[354129036,1740265833604,-500.0,0.00013698,2]
[354129038,1740265833614,-500.0,0.00013698,2]
[354129040,1740265833624,-500.0,0.00013698,2]
[354129042,1740265833634,-500.0,0.00013698,2]
[354129044,1740265833644,-500.0,0.00013698,2]
[354129046,1740265833655,-500.0,0.00013698,2]
[354129048,1740265833665,-500.0,0.00013698,2]
[354129050,1740265833675,-500.0,0.00013698,2]
[354129062,1740265833786,-500.0,0.00013698,2]
[354129064,1740265833796,-500.0,0.00013698,2]
[354129066,1740265833806,-500.0,0.00013698,2]
[354129067,1740265833816,-245.46080476,0.00013698,2]
[354129069,1740265833826,-500.0,0.00013698,2]
[354129071,1740265833835,-500.0,0.00013698,2]
[354129073,1740265833845,-500.0,0.00013698,2]
[354129075,1740265833855,-500.0,0.00013698,2]
[354129077,1740265833865,-500.0,0.00013698,2]
[354129078,1740265833875,-500.0,0.00013698,2]
[354129079,1740265833885,-500.0,0.00013698,2]
[354129080,1740265833895,-500.0,0.00013698,2]
[354129081,1740265833906,-181.81633093,0.00013698,2]
[354129082,1740265833919,-500.0,0.00013698,2]
[354129083,1740265833929,-500.0,0.00013698,2]
[354129084,1740265833938,-500.0,0.00013698,2]
[354129085,1740265833948,-504.22924463,0.00013698,2]
[354129086,1740265833958,-500.0,0.00013698,2]
[354129087,1740265833968,-500.0,0.00013698,2]
[354129088,1740265833977,-500.0,0.00013698,2]
[354129089,1740265833986,-500.0,0.00013698,2]
[354129090,1740265833996,-500.0,0.00013698,2]
[354129091,1740265834006,-500.0,0.00013698,2]
[354129092,1740265834016,-500.0,0.00013698,2]
[354129093,1740265834025,-346.05727118,0.00013698,2]
[354129094,1740265834034,-500.0,0.00013698,2]
[354129095,1740265834044,-500.0,0.00013698,2]
[354129096,1740265834053,-500.0,0.00013698,2]
[354129097,1740265834063,-500.0,0.00013698,2]
[354129098,1740265834073,-500.0,0.00013698,2]
[354129099,1740265834082,-500.0,0.00013698,2]
[354129100,1740265834092,-500.0,0.00013698,2]
[354129101,1740265834102,-500.0,0.00013698,2]
[354129102,1740265834110,-500.0,0.00013698,2]
[354129103,1740265834120,-231.24429553,0.00013698,2]
[354129104,1740265834129,-500.0,0.00013698,2]
[354129105,1740265834138,-500.0,0.00013698,2]
[354129106,1740265834147,-500.0,0.00013698,2]
[354129107,1740265834156,-500.0,0.00013698,2]
[354129108,1740265834166,-500.0,0.00013698,2]
[354129109,1740265834175,-500.0,0.00013698,2]
[354129110,1740265834184,-500.0,0.00013698,2]
[354129111,1740265834194,-516.1455052,0.00013698,2]
[354129112,1740265834205,-500.0,0.00013698,2]
[354129113,1740265834224,-500.0,0.00013698,2]
[354129114,1740265834233,-500.0,0.00013698,2]
[354129115,1740265834242,-500.0,0.00013698,2]
[354129116,1740265834251,-500.0,0.00013698,2]
[354129117,1740265834260,-500.0,0.00013698,2]
[354129118,1740265834270,-500.0,0.00013698,2]
[354129119,1740265834279,-500.0,0.00013698,2]
[354129120,1740265834288,-500.0,0.00013698,2]
[354129121,1740265834298,-500.0,0.00013698,2]
[354129122,1740265834307,-500.0,0.00013698,2]
[354129123,1740265834316,-500.0,0.00013698,2]
[354129124,1740265834326,-500.0,0.00013698,2]
[354129125,1740265834335,-500.0,0.00013698,2]
[354129126,1740265834344,-500.0,0.00013698,2]
[354129127,1740265834354,-500.0,0.00013698,2]
[354129128,1740265834363,-500.0,0.00013698,2]
[354129129,1740265834372,-500.0,0.00013698,2]
[354129130,1740265834382,-500.0,0.00013698,2]
[354129131,1740265834392,-504.73967674,0.00013698,2]
[354129132,1740265834401,-490.51984356,0.00013698,2]
[354129133,1740265834411,-500.0,0.00013698,2]
[354129134,1740265834420,-500.0,0.00013698,2]
[354129135,1740265834431,-500.0,0.00013698,2]
[354129136,1740265834440,-500.0,0.00013698,2]
[354129137,1740265834449,-500.0,0.00013698,2]
[354129138,1740265834459,-503.68999931,0.00013698,2]
[354129139,1740265834469,-500.0,0.00013698,2]
[354129140,1740265834479,-500.0,0.00013698,2]
[354129141,1740265834488,-500.0,0.00013698,2]
[354129142,1740265834497,-500.0,0.00013698,2]
[354129143,1740265834506,-500.0,0.00013698,2]
[354129144,1740265834515,-501.13933607,0.00013698,2]
[354129145,1740265834524,-507.6458509,0.00013698,2]
[354129146,1740265834533,-500.0,0.00013698,2]
[354129147,1740265834542,-500.0,0.00013698,2]
[354129148,1740265834551,-500.0,0.00013698,2]
[354129149,1740265834560,-500.0,0.00013698,2]
[354129150,1740265834569,-500.0,0.00013698,2]
[354129151,1740265834578,-500.0,0.00013698,2]
[354129152,1740265834588,-500.0,0.00013698,2]
[354129153,1740265834597,-500.0,0.00013698,2]
[354129154,1740265834606,-500.58334018,0.00013698,2]
[354129155,1740265834615,-584.17405527,0.00013698,2]
[354129156,1740265834625,-500.0,0.00013698,2]
[354129157,1740265834634,-500.0,0.00013698,2]
[354129158,1740265834643,-500.0,0.00013698,2]
[354129159,1740265834653,-500.0,0.00013698,2]
[354129160,1740265834663,-500.0,0.00013698,2]
[354129161,1740265834672,-500.0,0.00013698,2]
[354129162,1740265834681,-500.0,0.00013698,2]
[354129163,1740265834691,-500.0,0.00013698,2]
[354129164,1740265834700,-500.0,0.00013698,2]
[354129165,1740265834710,-500.0,0.00013698,2]
[354129166,1740265834719,-502.06694443,0.00013698,2]
[354129167,1740265834729,-500.0,0.00013698,2]
[354129168,1740265834738,-500.0,0.00013698,2]
[354129169,1740265834747,-500.0,0.00013698,2]
[354129170,1740265834757,-534.20175607,0.00013698,2]
[354129171,1740265834767,-500.0,0.00013698,2]
[354129172,1740265834776,-500.0,0.00013698,2]
[354129173,1740265834785,-500.0,0.00013698,2]
[354129174,1740265834794,-500.0,0.00013698,2]
[354129175,1740265834804,-500.0,0.00013698,2]
[354129176,1740265834813,-358.43228529,0.00013698,2]
[354129177,1740265834822,-500.0,0.00013698,2]
[354129178,1740265834831,-500.0,0.00013698,2]
[354129179,1740265834840,-263.46703286,0.00013698,2]
[354129180,1740265834850,-500.0,0.00013698,2]
[354129181,1740265834859,-500.0,0.00013698,2]
[354129182,1740265834869,-500.0,0.00013698,2]
[354129183,1740265834878,-500.0,0.00013698,2]
[354129184,1740265834887,-500.0,0.00013698,2]
[354129185,1740265834897,-500.0,0.00013698,2]
[354129186,1740265834907,-500.0,0.00013698,2]
[354129187,1740265834920,-500.0,0.00013698,2]
[354129188,1740265834930,-500.0,0.00013698,2]
[354129189,1740265834939,-500.0,0.00013698,2]
[354129190,1740265834948,-501.83347239,0.00013698,2]
[354129191,1740265834959,-500.0,0.00013698,2]
[354129192,1740265834968,-500.0,0.00013698,2]
[354129193,1740265834977,-527.71,0.00013698,2]
[354129194,1740265834987,-501.18521642,0.00013698,2]
[354129195,1740265834997,-500.0,0.00013698,2]
[354129196,1740265835167,-500.0,0.00013698,2]
[354129197,1740265835178,-1003.77,0.00013698,2]
[354129198,1740265835187,-500.0,0.00013698,2]
[354129199,1740265835196,-500.0,0.00013698,2]
[354129200,1740265835206,-1988.89,0.00013698,2]
[354129201,1740265835215,-501.74594599,0.00013698,2]
[354129202,1740265835224,-500.0,0.00013698,2]
[354129203,1740265835233,-500.0,0.00013698,2]
[354129204,1740265835243,-500.0,0.00013698,2]
[354129205,1740265835252,-500.0,0.00013698,2]
[354129206,1740265835262,-500.0,0.00013698,2]
[354129207,1740265835271,-500.0,0.00013698,2]
[354129208,1740265835280,-500.0,0.00013698,2]
[354129209,1740265835290,-500.0,0.00013698,2]
[354129210,1740265835300,-500.94804017,0.00013698,2]
[354129211,1740265835309,-500.0,0.00013698,2]
[354129212,1740265835318,-500.0,0.00013698,2]
[354129213,1740265835328,-500.0,0.00013698,2]
[354129214,1740265835337,-500.0,0.00013698,2]
[354129215,1740265835346,-500.0,0.00013698,2]
[354129216,1740265835356,-500.0,0.00013698,2]
[354129217,1740265835365,-500.0,0.00013698,2]
[354129218,1740265835375,-500.0,0.00013698,2]
[354129219,1740265835384,-500.0,0.00013698,2]
[354129220,1740265835393,-500.0,0.00013698,2]
[354129221,1740265835403,-500.0,0.00013698,2]
[354129222,1740265835413,-500.0,0.00013698,2]
[354129223,1740265835422,-997.33,0.00013698,2]
[354129224,1740265835432,-500.0,0.00013698,2]
[354129225,1740265835441,-500.0,0.00013698,2]
[354129226,1740265835450,-500.0,0.00013698,2]
[354129227,1740265835460,-500.0,0.00013698,2]
[354129228,1740265835469,-500.0,0.00013698,2]
[354129229,1740265835479,-500.0,0.00013698,2]
[354129230,1740265835487,-500.0,0.00013698,2]
[354129231,1740265835496,-502.42053589,0.00013698,2]
[354129232,1740265835505,-562.81,0.00013698,2]
[354129233,1740265835515,-500.0,0.00013698,2]
[354129234,1740265835524,-500.0,0.00013698,2]
[354129235,1740265835534,-500.0,0.00013698,2]
[354129236,1740265835543,-500.0,0.00013698,2]
[354129237,1740265835552,-500.0,0.00013698,2]
[354129238,1740265835562,-500.0,0.00013698,2]
[354129239,1740265835571,-500.0,0.00013698,2]
[354129240,1740265835581,-500.0,0.00013698,2]
[354129241,1740265835590,-500.0,0.00013698,2]
[354129242,1740265835599,-1231.32,0.00013698,2]
[354129243,1740265835609,-1231.32,0.00013698,2]
[354129244,1740265835618,-1231.32,0.00013698,2]
[354129245,1740265835628,-500.0,0.00013698,2]
[354129246,1740265835637,-1231.32,0.00013698,2]
[354129247,1740265835646,-1231.32,0.00013698,2]
[354129248,1740265835655,-1231.32,0.00013698,2]
[354129249,1740265835664,-500.0,0.00013698,2]
[354129250,1740265835673,-1231.32,0.00013698,2]
[354129251,1740265835682,-1231.32,0.00013698,2]
[354129252,1740265835691,-500.0,0.00013698,2]
[354129253,1740265835700,-1231.32,0.00013698,2]
[354129254,1740265835709,-500.0,0.00013698,2]
[354129255,1740265835719,-1231.32,0.00013698,2]
[354129256,1740265835728,-500.0,0.00013698,2]
[354129257,1740265835737,-1231.32,0.00013698,2]
[354129258,1740265835747,-500.0,0.00013698,2]
[354129259,1740265835756,-500.0,0.00013698,2]
[354129260,1740265835765,-500.0,0.00013698,2]
[354129261,1740265835774,-500.0,0.00013698,2]
[354129262,1740265835783,-500.0,0.00013698,2]
[354129263,1740265835793,-500.0,0.00013698,2]
[354129264,1740265835802,-500.0,0.00013698,2]
[354129265,1740265835812,-500.0,0.00013698,2]
[354129266,1740265835821,-500.0,0.00013698,2]
[354129267,1740265835831,-500.0,0.00013698,2]
[354129268,1740265835841,-500.0,0.00013698,2]
[354129269,1740265835850,-500.0,0.00013698,2]
[354129270,1740265835859,-500.0,0.00013698,2]
[354129271,1740265835869,-500.0,0.00013698,2]
[354129272,1740265835879,-500.0,0.00013698,2]
[354129273,1740265835888,-500.0,0.00013698,2]
[354129274,1740265835897,-500.0,0.00013698,2]
[354129275,1740265835907,-500.0,0.00013698,2]
[354129276,1740265835919,-500.0,0.00013698,2]
[354129277,1740265835929,-500.0,0.00013698,2]
[354129278,1740265835937,-950.99,0.00013698,2]
[354129279,1740265835947,-191.70660949,0.00013698,2]
[354129280,1740265835958,-500.0,0.00013698,2]
[354129281,1740265835968,-500.0,0.00013698,2]
[354129282,1740265835977,-500.0,0.00013698,2]
[354129283,1740265835988,-500.0,0.00013698,2]
[354129284,1740265835997,-500.0,0.00013698,2]
[354129285,1740265836007,-500.0,0.00013698,2]
[354129286,1740265836016,-500.0,0.00013698,2]
[354129287,1740265836105,-500.0,0.00013698,2]
[354129288,1740265836115,-500.0,0.00013698,2]
[354129289,1740265836124,-502.02166102,0.00013698,2]
[354129290,1740265836134,-500.0,0.00013698,2]
[354129291,1740265836143,-433.05821167,0.00013698,2]
[354129292,1740265836152,-500.0,0.00013698,2]
[354129293,1740265836162,-500.0,0.00013698,2]
[354129294,1740265836171,-500.0,0.00013698,2]
[354129295,1740265836180,-500.0,0.00013698,2]
[354129296,1740265836190,-500.0,0.00013698,2]
[354129297,1740265836199,-500.0,0.00013698,2]
[354129298,1740265836208,-501.75269151,0.00013698,2]
[354129299,1740265836217,-500.0,0.00013698,2]
[354129300,1740265836226,-507.36618061,0.00013698,2]
[354129301,1740265836236,-500.0,0.00013698,2]
[354129302,1740265836245,-500.0,0.00013698,2]
[354129303,1740265836254,-500.0,0.00013698,2]
[354129304,1740265836263,-500.0,0.00013698,2]
[354129305,1740265836272,-500.0,0.00013698,2]
[354129306,1740265836282,-500.0,0.00013698,2]
[354129307,1740265836291,-500.0,0.00013698,2]
[354129308,1740265836300,-501.08928874,0.00013698,2]
[354129309,1740265836310,-500.0,0.00013698,2]
[354129310,1740265836319,-500.0,0.00013698,2]
[354129311,1740265836329,-500.0,0.00013698,2]
[354129312,1740265836338,-500.0,0.00013698,2]
[354129313,1740265836347,-500.0,0.00013698,2]
[354129314,1740265836357,-500.0,0.00013698,2]
[354129315,1740265836366,-500.0,0.00013698,2]
[354129316,1740265836375,-500.0,0.00013698,2]
[354129317,1740265836384,-500.0,0.00013698,2]
[354129318,1740265836393,-500.0,0.00013698,2]
[354129319,1740265836403,-1341.9,0.00013698,2]
[354129320,1740265836412,-500.0,0.00013698,2]
[354129321,1740265836422,-680.5,0.00013698,2]
[354129322,1740265836431,-1014.97,0.00013698,2]
[354129323,1740265836439,-1014.97,0.00013698,2]
[354129324,1740265836448,-500.0,0.00013698,2]
[354129325,1740265836457,-1014.97,0.00013698,2]
[354129326,1740265836466,-1014.97,0.00013698,2]
[354129327,1740265836476,-1014.97,0.00013698,2]
[354129328,1740265836485,-1014.97,0.00013698,2]
[354129329,1740265836495,-376.45502869,0.00013698,2]
[354129330,1740265836504,-1014.97,0.00013698,2]
[354129331,1740265836514,-1014.97,0.00013698,2]
[354129332,1740265836523,-1014.97,0.00013698,2]
[354129333,1740265836532,-1014.97,0.00013698,2]
[354129334,1740265836542,-1014.97,0.00013698,2]
[354129335,1740265836551,-500.0,0.00013698,2]
[354129336,1740265836560,-1014.97,0.00013698,2]
[354129337,1740265836570,-3994.83,0.00013698,2]
[354129338,1740265836579,-500.0,0.00013698,2]
[354129339,1740265836588,-500.0,0.00013698,2]
[354129340,1740265836597,-500.0,0.00013698,2]
[354129341,1740265836606,-500.0,0.00013698,2]
[354129342,1740265836616,-500.0,0.00013698,2]
[354129343,1740265836625,-500.0,0.00013698,2]
[354129344,1740265836634,-500.0,0.00013698,2]
[354129345,1740265836643,-500.0,0.00013698,2]
[354129346,1740265836653,-500.0,0.00013698,2]
[354129347,1740265836662,-500.0,0.00013698,2]
[354129348,1740265836671,-500.0,0.00013698,2]
[354129349,1740265836681,-477.76868699,0.00013698,2]
[354129350,1740265836690,-500.0,0.00013698,2]
[354129351,1740265836699,-11439.2,0.00013698,2]